bitfinex/quotes_SOLUSD_20250318
["timestamp","ask_amount","ask_price","bid_price","bid_amount"]
[1742268895339,0.03,124.24,124.22,19.21829514]
[1742268896523,0.03,124.24,124.23,8.0495]
[1742268899545,0.03,124.24,124.23,27.26779514]
[1742268900027,0.03,124.24,124.23,68.01241796]
[1742268900647,0.03,124.24,124.23,27.26779514]
[1742268901648,0.03,124.24,124.23,68.01241796]
[1742268902752,0.0001,124.24,124.23,68.01241796]
[1742268904055,40.77462282,124.29,124.24,19.21829514]
[1742268904263,40.77462282,124.29,124.24,59.96291796]
[1742268905068,40.74462282,124.25,124.24,18.933972]
[1742268905436,40.74462282,124.25,124.24,19.21829514]
[1742268905633,20.0,124.23,124.22,12.53677585]
[1742268905940,40.74462282,124.23,124.22,12.53677585]
[1742268906266,40.74462282,124.23,124.21,0.28432314]
[1742268906561,20.0,124.19,124.18,12.53677585]
[1742268906937,60.74462282,124.19,124.18,12.53677585]
[1742268907139,20.0,124.2,124.19,0.28432314]
[1742268907453,40.74462282,124.21,124.19,0.28432314]
[1742268907847,40.74462282,124.21,124.19,0.56864628]
[1742268908058,40.74462282,124.21,124.19,8.62054628]
[1742268908470,40.74462282,124.22,124.21,0.56864628]
[1742268908657,7.52,124.24,124.21,0.56864628]
[1742268908953,7.52,124.24,124.2,0.14216157]
[1742268908954,60.74462282,124.22,124.2,0.14216157]
[1742268909159,60.74462282,124.21,124.2,0.14216157]
[1742268909672,20.0,124.21,124.2,0.14216157]
[1742268909955,60.74462282,124.21,124.19,19.07613357]
[1742268910136,40.74462282,124.2,124.19,27.27029514]
[1742268910339,40.74462282,124.2,124.19,27.12813357]
[1742268910862,40.74462282,124.2,124.19,27.27029514]
[1742268911662,60.74462282,124.21,124.19,27.12813357]
[1742268911860,20.0,124.21,124.2,0.28432314]
[1742268912042,48.26462282,124.24,124.22,0.56864628]
[1742268912242,48.26462282,124.24,124.23,19.21829514]
[1742268912442,40.74462282,124.24,124.23,19.21829514]
[1742268912969,40.74462282,124.24,124.21,8.0508]
[1742268913162,60.74462282,124.22,124.21,27.26909514]
[1742268913461,60.74462282,124.22,124.19,138.163]
[1742268913763,40.74462282,124.2,124.19,157.38129514]
[1742268913950,40.74462282,124.21,124.19,165.148772]
[1742268914149,40.74462282,124.21,124.2,27.26979514]
[1742268914674,40.74462282,124.22,124.2,27.26979514]
[1742268914870,48.24462282,124.23,124.21,0.14216157]
[1742268915175,40.74462282,124.23,124.21,0.14216157]
[1742268915700,60.74462282,124.22,124.21,0.14216157]
[1742268915994,60.74462282,124.22,124.2,19.07613357]
[1742268916183,60.74462282,124.21,124.19,146.35726157]
[1742268916493,60.74462282,124.2,124.19,138.58948471]
[1742268916675,60.74462282,124.2,124.19,157.23913357]
[1742268916875,60.74462282,124.2,124.19,157.38129514]
[1742268917299,60.74462282,124.2,124.19,165.43339514]
[1742268918004,60.74462282,124.2,124.19,27.33339514]
[1742268918193,60.74462282,124.21,124.19,27.19123357]
[1742268918499,20.0,124.2,124.19,27.33339514]
[1742268918974,40.74462282,124.21,124.2,19.21829514]
[1742268919177,20.0,124.21,124.2,19.21829514]
[1742268920276,20.0,124.21,124.2,27.26979514]
[1742268920490,60.74462282,124.22,124.2,27.26979514]
[1742268920693,60.74462282,124.21,124.2,19.21829514]
[1742268920884,60.74462282,124.21,124.2,27.26979514]
[1742268921395,0.03,124.24,124.2,27.26979514]
[1742268921691,40.74462282,124.23,124.2,27.26979514]
[1742268921896,20.0,124.21,124.2,27.26979514]
[1742268923893,25.36362421,124.24,124.2,47.39859514]
[1742268924095,25.36362421,124.24,124.2,27.26979514]
[1742268924505,20.0,124.21,124.2,27.26979514]
[1742268925304,25.33362421,124.22,124.2,27.26959514]
[1742268925882,20.0,124.23,124.2,27.26959514]
[1742268925883,45.33362421,124.23,124.2,27.26959514]
[1742268926215,45.33362421,124.23,124.2,47.39839514]
[1742268926584,45.36362421,124.24,124.2,47.39839514]
[1742268927504,0.03,124.24,124.2,47.39839514]
[1742268927688,20.0,124.23,124.2,210.83201935]
[1742268927894,0.03,124.24,124.2,210.83201935]
[1742268927895,0.03,124.24,124.22,19.21829514]
[1742268928097,0.03,124.24,124.22,44.55191935]
[1742268928405,20.03,124.24,124.22,44.55191935]
[1742268928583,20.03,124.24,124.23,27.26779514]
[1742268929594,0.03,124.24,124.23,27.26779514]
[1742268929792,20.03,124.24,124.23,27.26779514]
[1742268930715,0.03,124.24,124.23,27.26779514]
[1742268931429,0.03,124.24,124.23,67.78303691]
[1742268931606,0.03,124.24,124.23,205.88303691]
[1742268932221,0.03,124.24,124.23,27.26779514]
[1742268934707,0.03,124.24,124.23,67.78303691]
[1742268935117,0.03,124.24,124.23,27.26779514]
[1742268936696,0.03,124.24,124.23,67.78303691]
[1742268938309,0.0001,124.24,124.23,67.78303691]
[1742268939025,0.0001,124.24,124.23,517.88303691]
[1742268939607,0.03,124.29,124.24,19.21829514]
[1742268939914,0.03,124.29,124.28,19.21829514]
[1742268941207,0.03,124.29,124.28,27.26459514]
[1742268942612,0.03,124.29,124.28,19.21829514]
[1742268942815,40.54524177,124.29,124.28,19.21829514]
[1742268943308,20.0,124.27,124.26,8.0472]
[1742268943504,20.0,124.27,124.26,18.933972]
[1742268943710,60.51524177,124.27,124.26,19.21829514]
[1742268944020,20.0,124.27,124.26,19.21829514]
[1742268944523,20.0,124.28,124.27,0.42648471]
[1742268944711,60.51524177,124.28,124.27,0.42648471]
[1742268944913,20.0,124.28,124.27,0.42648471]
[1742268945213,20.0,124.28,124.27,8.61554628]
[1742268945417,20.0,124.28,124.27,27.26519514]
[1742268947830,0.03,124.29,124.28,19.21829514]
[1742268948033,20.03,124.29,124.28,19.21829514]
[1742268949117,0.03,124.29,124.28,27.26459514]
[1742268951018,0.03,124.29,124.28,52.56770839]
[1742268951726,0.03,124.33,124.29,0.42648471]
[1742268951929,0.03,124.33,124.31,0.42648471]
[1742268952715,0.03,124.33,124.32,19.21829514]
[1742268953231,0.03,124.33,124.32,27.26199514]
[1742268956926,0.0001,124.33,124.32,190.66510839]
[1742268957810,0.0001,124.33,124.32,165.21983357]
[1742268958215,0.0001,124.33,124.32,165.36199514]
[1742268958814,25.30321325,124.33,124.32,18.933972]
[1742268959023,25.30321325,124.33,124.32,27.26199514]
[1742268959311,0.0001,124.33,124.32,27.26199514]
[1742268961033,0.0001,124.33,124.32,52.56510839]
[1742268961224,0.0001,124.33,124.32,190.66510839]
[1742268962633,45.30321325,124.33,124.32,18.933972]
[1742268962931,45.30321325,124.33,124.32,19.21829514]
[1742268962932,45.28321325,124.33,124.32,19.21829514]
[1742268963135,45.28321325,124.33,124.31,0.14216157]
[1742268963340,25.30311325,124.32,124.31,0.42648471]
[1742268963634,25.30311325,124.32,124.31,8.32872314]
[1742268963935,25.30311325,124.32,124.31,19.21829514]
[1742268964438,25.30311325,124.32,124.31,27.26269514]
[1742268964640,25.30311325,124.32,124.31,27.12053357]
[1742268965636,25.30311325,124.32,124.31,27.26269514]
[1742268966435,32.64311325,124.33,124.32,0.28432314]
[1742268966640,0.03,124.34,124.32,0.28432314]
[1742268967638,0.03,124.34,124.33,27.26139514]
[1742268969337,0.03,124.35,124.33,27.26139514]
[1742268969338,0.03,124.35,124.34,19.21829514]
[1742268969721,0.03,124.35,124.34,27.26069514]
[1742268971436,25.33311325,124.35,124.34,19.21829514]
[1742268971735,32.65311325,124.35,124.33,18.64964886]
[1742268971937,25.30311325,124.34,124.32,8.47018471]
[1742268972123,25.30311325,124.34,124.32,8.32802314]
[1742268972718,25.30311325,124.33,124.31,26.75664886]
[1742268972937,20.0,124.33,124.32,0.28432314]
[1742268973244,20.0,124.33,124.32,19.21829514]
[1742268973435,7.35,124.35,124.32,19.21829514]
[1742268974145,7.35,124.35,124.33,8.0431]
[1742268974838,7.35,124.35,124.34,19.21829514]
[1742268975344,0.03,124.35,124.34,19.21829514]
[1742268976128,0.03,124.35,124.34,52.56380839]
[1742268976320,0.03,124.37,124.34,72.66990839]
[1742268977834,0.03,124.37,124.36,44.52140839]
[1742268978244,0.03,124.37,124.36,52.56250839]
[1742268978433,0.03,124.37,124.36,27.25939514]
[1742268980446,32.63311325,124.37,124.35,18.64964886]
[1742268980635,25.30311325,124.36,124.35,19.21829514]
[1742268980839,7.33,124.37,124.35,18.933972]
[1742268981731,20.03,124.37,124.36,0.56864628]
[1742268981935,0.03,124.37,124.36,44.52140839]
[1742268982437,0.03,124.37,124.36,27.25939514]
[1742268984256,0.03,124.37,124.36,52.56250839]
[1742268985448,0.0001,124.37,124.36,52.56250839]
[1742268985847,0.0001,124.37,124.36,60.25920839]
[1742268986537,0.0001,124.4,124.39,19.21829514]
[1742268986744,0.0001,124.4,124.39,44.52140839]
[1742268987041,0.0001,124.4,124.39,19.21829514]
[1742268987857,0.0001,124.4,124.39,44.52140839]
[1742268988065,0.0001,124.4,124.39,19.21829514]
[1742268988574,0.0001,124.4,124.39,27.25749514]
[1742268990270,0.0001,124.4,124.39,52.56060839]
[1742268991645,0.0001,124.4,124.39,190.66060839]
[1742268992256,0.0001,124.4,124.39,165.35749514]
[1742268992448,0.0001,124.4,124.39,190.66060839]
[1742268994969,25.30311325,124.45,124.41,18.64964886]
[1742268995651,25.30311325,124.46,124.42,0.56864628]
[1742268996053,1.6155,124.47,124.42,0.56864628]
[1742268996373,25.30311325,124.46,124.42,0.56864628]
[1742268996958,25.30311325,124.46,124.43,26.68624886]
[1742268997273,1.6155,124.47,124.43,26.68624886]
[1742268997274,25.33311325,124.47,124.43,26.68624886]
[1742268997466,25.33311325,124.47,124.44,0.56864628]
[1742268998072,25.30311325,124.46,124.45,19.21829514]
[1742268999152,25.30311325,124.46,124.44,0.28432314]
[1742268999554,25.30311325,124.45,124.44,0.28432314]
[1742268999765,25.30311325,124.46,124.44,26.969972]
[1742269001070,25.30311325,124.46,124.45,27.25359514]
[1742269001669,25.33311325,124.47,124.45,27.11143357]
[1742269002273,25.30311325,124.46,124.45,27.25359514]
[1742269002674,25.33311325,124.47,124.45,27.11143357]
[1742269003049,0.03,124.47,124.45,27.11143357]
[1742269003249,16.18394086,124.47,124.45,27.11143357]
[1742269005679,36.15394086,124.46,124.44,8.17776157]
[1742269005860,16.15394086,124.46,124.44,18.933972]
[1742269007157,16.15394086,124.46,124.44,26.969672]
[1742269007357,16.15394086,124.46,124.44,18.933972]
[1742269007772,16.15394086,124.46,124.43,8.32062314]
[1742269007773,16.15394086,124.45,124.43,0.42648471]
[1742269007976,36.15394086,124.45,124.43,8.46308471]
[1742269008358,36.15394086,124.45,124.43,8.32092314]
[1742269008873,16.15394086,124.44,124.43,0.28432314]
[1742269009076,16.15394086,124.44,124.43,19.21829514]
[1742269009859,16.15394086,124.44,124.43,27.25489514]
[1742269010183,36.15394086,124.45,124.43,27.11273357]
[1742269010360,20.0,124.45,124.43,27.11273357]
[1742269011284,16.15394086,124.44,124.42,8.17906157]
[1742269011583,20.0,124.45,124.42,19.21829514]
[1742269011584,16.15394086,124.43,124.42,19.21829514]
[1742269011879,36.15394086,124.45,124.42,27.25549514]
[1742269012655,16.15394086,124.44,124.42,27.25549514]
[1742269015073,36.15394086,124.45,124.42,27.25549514]
[1742269015984,7.24,124.44,124.42,27.25549514]
[1742269016287,16.15394086,124.44,124.42,27.25549514]
[1742269016474,43.39394086,124.45,124.42,27.25549514]
[1742269016966,23.39394086,124.46,124.43,18.64964886]
[1742269017784,23.39394086,124.46,124.44,8.036]
[1742269017988,7.24,124.46,124.44,8.036]
[1742269018690,23.39394086,124.46,124.44,8.036]
[1742269019974,23.42394086,124.46,124.44,8.036]
[1742269021490,7.27,124.46,124.44,8.036]
[1742269022997,0.03,124.46,124.44,8.036]
[1742269023207,0.03,124.46,124.45,19.21829514]
[1742269023801,0.03,124.46,124.45,27.25359514]
[1742269026472,0.03,124.46,124.45,43.407536]
[1742269027677,0.03,124.46,124.45,27.25359514]
[1742269028180,0.03,124.46,124.45,43.407536]
[1742269028380,0.03,124.47,124.45,43.407536]
[1742269029594,16.18394086,124.47,124.44,18.64964886]
[1742269029804,16.18394086,124.47,124.45,0.42648471]
[1742269030404,16.18394086,124.47,124.45,0.56864628]
[1742269031990,16.15394086,124.46,124.44,0.56864628]
[1742269032300,16.15394086,124.46,124.44,0.42648471]
[1742269032511,20.0,124.43,124.42,0.063]
[1742269032686,43.39394086,124.43,124.42,0.063]
[1742269035884,23.39394086,124.43,124.42,19.28129514]
[1742269036094,7.24,124.43,124.42,19.28129514]
[1742269036907,7.24,124.43,124.42,27.31849514]
[1742269037296,23.39394086,124.43,124.42,19.28129514]
[1742269037699,23.39394086,124.43,124.42,27.31849514]
[1742269038139,7.24,124.43,124.42,27.31849514]
[1742269038485,23.39394086,124.43,124.42,27.31849514]
[1742269038918,23.39394086,124.43,124.42,0.063]
[1742269039201,43.39394086,124.43,124.42,0.063]
[1742269039981,27.24,124.43,124.42,0.063]
[1742269040207,43.39394086,124.43,124.42,0.063]
[1742269040503,51.43054086,124.43,124.42,0.063]
[1742269040703,31.43054086,124.43,124.42,0.063]
[1742269041213,20.0,124.43,124.42,0.063]
[1742269041385,36.15394086,124.43,124.42,0.063]
[1742269042286,20.0,124.43,124.42,0.063]
[1742269043011,20.0,124.43,124.42,19.28129514]
[1742269043403,7.24,124.45,124.42,19.28129514]
[1742269043609,16.15394086,124.46,124.42,19.28129514]
[1742269043793,0.03,124.47,124.42,35.435236]
[1742269044424,0.03,124.47,124.42,47.98170125]
[1742269044601,0.03,124.47,124.43,16.15394086]
[1742269044789,16.18394086,124.47,124.42,47.98170125]
[1742269044984,16.18394086,124.47,124.43,44.28214086]
[1742269045214,0.03,124.47,124.43,44.28214086]
[1742269045689,0.03,124.47,124.43,56.82860611]
[1742269046298,16.18394086,124.47,124.44,0.56864628]
[1742269046511,16.15394086,124.46,124.44,0.56864628]
[1742269046712,16.18394086,124.47,124.44,0.56864628]
[1742269047005,16.18394086,124.47,124.45,8.0353]
[1742269048113,16.15394086,124.46,124.44,8.036]
[1742269048291,23.42394086,124.47,124.44,8.036]
[1742269049693,16.15394086,124.46,124.44,19.07613357]
[1742269050508,23.42394086,124.47,124.43,8.17846157]
[1742269050819,23.42394086,124.47,124.44,0.42648471]
[1742269051113,7.27,124.47,124.44,19.07613357]
[1742269051314,7.27,124.47,124.46,8.0347]
[1742269052295,23.42394086,124.47,124.46,8.0347]
[1742269052598,23.42394086,124.47,124.44,27.11183357]
[1742269052798,16.15394086,124.46,124.44,27.11183357]
[1742269052999,23.42394086,124.47,124.44,27.11183357]
[1742269053502,7.27,124.47,124.45,0.14216157]
[1742269055006,23.42394086,124.47,124.45,0.14216157]
[1742269055419,16.18394086,124.47,124.45,8.17696157]
[1742269055712,16.18394086,124.47,124.44,8.46218471]
[1742269055919,16.15394086,124.46,124.44,8.46218471]
[1742269056095,16.15394086,124.46,124.44,27.11183357]
[1742269056292,16.15394086,124.46,124.44,8.0357]
[1742269056595,16.18394086,124.47,124.44,8.0357]
[1742269056906,16.18394086,124.47,124.44,26.68534886]
[1742269057506,16.18394086,124.47,124.45,19.21829514]
[1742269057813,20.0,124.46,124.45,19.21829514]
[1742269058218,36.15394086,124.46,124.45,19.21829514]
[1742269058420,36.15394086,124.46,124.44,0.063]
[1742269058616,20.0,124.45,124.44,0.063]
[1742269058821,36.15394086,124.45,124.44,0.063]
[1742269059342,1.5851,124.44,124.42,12.60946525]
[1742269059503,23.39394086,124.43,124.42,12.60946525]
[1742269059700,31.43054086,124.43,124.42,12.60946525]
[1742269059909,31.43054086,124.43,124.42,0.063]
[1742269063018,23.39394086,124.43,124.42,0.063]
[1742269063914,16.15394086,124.43,124.42,0.063]
[1742269064120,23.39394086,124.43,124.42,0.063]
[1742269065024,31.43054086,124.43,124.42,0.063]
[1742269065706,23.39394086,124.43,124.42,0.063]
[1742269067631,31.43054086,124.43,124.42,0.063]
[1742269069517,23.39394086,124.43,124.42,0.063]
[1742269077141,16.18394086,124.44,124.42,0.063]
[1742269077549,0.03,124.44,124.42,0.063]
[1742269077933,0.03,124.44,124.42,19.28129514]
[1742269078141,0.03,124.44,124.42,35.435236]
[1742269078530,0.03,124.44,124.43,8.0366]
[1742269078934,0.03,124.44,124.43,8.32092314]
[1742269079147,0.03,124.44,124.43,8.0366]
[1742269079320,16.18394086,124.44,124.42,26.89171043]
[1742269079523,16.15394086,124.43,124.42,27.31819514]
[1742269081525,16.18394086,124.44,124.42,27.31819514]
[1742269082120,36.18394086,124.44,124.42,27.31819514]
[1742269082324,16.15394086,124.43,124.42,0.063]
[1742269082536,16.15394086,124.43,124.42,8.66884628]
[1742269082741,36.18394086,124.44,124.42,8.1002]
[1742269083329,0.03,124.44,124.43,0.56864628]
[1742269083736,0.03,124.44,124.43,8.60524628]
[1742269084743,0.03,124.44,124.43,27.25489514]
[1742269089534,16.18394086,124.44,124.43,18.64964886]
[1742269090849,16.18394086,124.44,124.42,0.063]
[1742269091028,16.15394086,124.43,124.42,0.063]
[1742269091530,24.19054086,124.43,124.42,0.063]
[1742269094508,24.19054086,124.43,124.39,0.063]
[1742269094509,20.0,124.4,124.39,0.063]
[1742269094700,43.39394086,124.4,124.39,0.063]
[1742269096799,51.43244086,124.4,124.39,0.063]
[1742269097377,43.39394086,124.4,124.39,0.063]
[1742269097614,116.0482043,124.4,124.35,0.063]
[1742269097777,16.15394086,124.36,124.35,0.063]
[1742269103716,16.15394086,124.37,124.35,0.63164628]
[1742269103886,27.24,124.4,124.35,0.63164628]
[1742269104086,16.15394086,124.38,124.35,0.63164628]
[1742269104324,16.15394086,124.4,124.35,16.78558714]
[1742269104489,16.15394086,124.39,124.35,0.63164628]
[1742269104692,16.15394086,124.39,124.36,0.42648471]
[1742269105210,16.15394086,124.39,124.37,8.0405]
[1742269105725,15.278,124.41,124.35,0.20516157]
[1742269105726,16.15394086,124.38,124.35,0.20516157]
[1742269105895,16.15394086,124.38,124.35,8.24676157]
[1742269106094,16.15394086,124.38,124.35,0.20516157]
[1742269106308,16.15394086,124.39,124.36,19.07613357]
[1742269106490,0.03,124.39,124.37,0.14216157]
[1742269107513,0.03,124.39,124.38,8.0398]
[1742269107895,0.03,124.39,124.38,27.25809514]
[1742269113007,0.03,124.44,124.38,72.61893307]
[1742269113329,32.53123793,124.44,124.39,44.47953307]
[1742269114611,25.26123793,124.43,124.39,19.21829514]
[1742269114810,0.03,124.44,124.39,19.21829514]
[1742269115129,25.26123793,124.43,124.41,19.21829514]
[1742269117228,25.26123793,124.43,124.42,8.0372]
[1742269117527,25.26123793,124.43,124.39,8.0392]
[1742269117719,25.26123793,124.41,124.4,19.21829514]
[1742269117931,25.26123793,124.41,124.39,26.68884886]
[1742269118230,25.26123793,124.4,124.39,27.25749514]
[1742269118429,25.26123793,124.4,124.39,27.32049514]
[1742269119019,25.26123793,124.41,124.39,27.17833357]
[1742269119804,25.26123793,124.4,124.39,0.063]
[1742269121836,33.29973793,124.4,124.39,0.063]
[1742269122629,25.26123793,124.4,124.39,0.063]
[1742269124133,20.0,124.4,124.39,0.063]
[1742269124320,25.26123793,124.4,124.39,0.063]
[1742269125036,25.26123793,124.41,124.39,0.063]
[1742269125238,7.27,124.44,124.39,19.28129514]
[1742269125541,25.26123793,124.43,124.39,19.28129514]
[1742269127150,25.26123793,124.42,124.39,19.28129514]
[1742269127342,25.26123793,124.42,124.41,19.21829514]
[1742269128032,25.26123793,124.42,124.4,8.0385]
[1742269128223,25.26123793,124.41,124.4,27.25679514]
[1742269128939,25.26123793,124.42,124.4,27.25679514]
[1742269130246,0.03,124.41,124.4,27.25679514]
[1742269131647,25.29123793,124.41,124.4,27.25679514]
[1742269132845,25.29123793,124.41,124.39,0.063]
[1742269133027,25.26123793,124.4,124.39,8.1022]
[1742269133228,16.17253056,124.4,124.39,8.1022]
[1742269134549,0.03,124.41,124.4,0.28432314]
[1742269134753,0.03,124.41,124.4,19.21829514]
[1742269135652,0.03,124.41,124.4,27.25679514]
[1742269139554,25.28525662,124.41,124.4,27.25679514]
[1742269141257,25.28525662,124.41,124.39,27.17813357]
[1742269142446,0.03,124.41,124.4,0.14216157]
[1742269145457,0.03,124.41,124.4,26.83031043]
[1742269149039,25.28525662,124.41,124.4,26.68814886]
[1742269149357,25.28525662,124.41,124.4,18.64964886]
[1742269149547,25.28525662,124.41,124.4,26.68814886]
[1742269149747,0.03,124.41,124.4,26.68814886]
[1742269150557,25.28525662,124.41,124.4,26.68814886]
[1742269151172,25.28525662,124.41,124.4,18.64964886]
[1742269151458,33.32325662,124.41,124.39,0.063]
[1742269151644,25.25525662,124.4,124.39,0.063]
[1742269152448,25.25525662,124.4,124.39,18.71264886]
[1742269152657,25.28525662,124.41,124.39,19.13913357]
[1742269152957,0.03,124.41,124.39,19.13913357]
[1742269153343,25.28525662,124.41,124.39,19.13913357]
[1742269153860,25.28525662,124.41,124.39,27.17813357]
[1742269154459,25.25525662,124.4,124.39,27.32029514]
[1742269155548,25.25525662,124.4,124.39,0.063]
[1742269157163,16.17336621,124.4,124.39,0.063]
[1742269157565,20.0,124.38,124.37,12.54646525]
[1742269157744,20.0,124.36,124.35,0.063]
[1742269157944,27.24,124.36,124.32,136.53063487]
[1742269158165,16.17336621,124.33,124.32,136.53063487]
[1742269158348,16.17336621,124.33,124.31,83.38609151]
[1742269158660,16.17336621,124.33,124.31,83.52825308]
[1742269159173,16.17336621,124.32,124.31,75.34179151]
[1742269159355,16.17336621,124.32,124.31,83.38619151]
[1742269160149,16.17336621,124.32,124.31,75.34179151]
[1742269160348,16.17336621,124.32,124.31,0.063]
[1742269161071,16.17336621,124.32,124.31,8.1074]
[1742269162349,16.17336621,124.32,124.31,0.063]
[1742269162955,16.17336621,124.33,124.31,0.063]
[1742269163175,25.29650206,124.33,124.31,0.063]
[1742269165389,25.29650206,124.34,124.31,0.063]
[1742269165562,25.29650206,124.35,124.31,19.28129514]
[1742269165763,25.32650206,124.34,124.31,19.28129514]
[1742269166082,0.03,124.34,124.31,19.28129514]
[1742269167187,0.03,124.34,124.32,8.0437]
[1742269171989,20.0,124.37,124.33,44.5147972]
[1742269172194,25.29650206,124.38,124.33,44.5147972]
[1742269172375,25.29650206,124.39,124.35,19.21829514]
[1742269173389,7.27,124.41,124.35,44.5147972]
[1742269173574,32.56650206,124.41,124.38,8.0398]
[1742269173770,32.56650206,124.41,124.39,18.64964886]
[1742269173771,7.27,124.41,124.39,18.64964886]
[1742269174197,0.03,124.41,124.39,18.64964886]
[1742269176376,0.03,124.41,124.4,26.68814886]
[1742269176893,0.03,124.41,124.4,52.5532972]
[1742269177787,0.0001,124.41,124.4,54.2089972]
[1742269179078,0.03,124.47,124.41,19.21829514]
[1742269179394,0.03,124.47,124.46,19.21829514]
[1742269179780,0.03,124.47,124.46,44.5147972]
[1742269180594,0.03,124.47,124.46,52.5494972]
[1742269184400,0.0001,124.47,124.46,61.3583972]
[1742269186098,0.0001,124.47,124.46,60.8583972]
[1742269186689,0.0001,124.47,124.46,35.56189514]
[1742269187611,0.0001,124.47,124.46,33.83083357]
[1742269187792,0.0001,124.47,124.46,33.97299514]
[1742269187989,0.0001,124.47,124.46,27.03731828]
[1742269188194,0.0001,124.47,124.46,27.17947985]
[1742269188912,0.0001,124.47,124.46,52.47598191]
[1742269189907,0.0001,124.47,124.46,52.53898191]
[1742269192317,0.0001,124.47,124.46,27.24247985]
[1742269192515,0.0001,124.47,124.46,52.53898191]
[1742269196521,0.0001,124.47,124.46,34.17815671]
[1742269196827,0.0001,124.47,124.46,59.75898191]
[1742269197117,0.0001,124.47,124.46,26.95815671]
[1742269197315,0.0001,124.47,124.46,52.25465877]
[1742269197516,0.0001,124.47,124.46,52.53898191]
[1742269200419,0.0001,124.47,124.46,26.95815671]
[1742269200922,0.0001,124.47,124.46,0.063]
[1742269201128,25.29660206,124.47,124.46,0.063]
[1742269202509,0.0001,124.47,124.46,0.063]
[1742269202714,0.0001,124.47,124.46,19.13913357]
[1742269202913,0.0001,124.47,124.46,19.28129514]
[1742269203718,0.0001,124.47,124.46,27.31599514]
[1742269204106,0.0001,124.47,124.46,52.6124972]
[1742269205528,0.0001,124.47,124.46,27.31599514]
[1742269206225,0.0001,124.47,124.46,26.74734886]
[1742269206430,25.29660206,124.47,124.46,0.063]
[1742269209209,48.08880206,124.47,124.46,0.063]
[1742269213911,20.0,124.44,124.39,8.0389]
[1742269214234,25.29650206,124.42,124.39,8.0389]
[1742269214525,32.51650206,124.43,124.39,8.0389]
[1742269214735,7.22,124.43,124.41,18.64964886]
[1742269214930,20.0,124.44,124.43,18.64964886]
[1742269215320,20.0,124.44,124.43,8.0366]
[1742269215641,20.0,124.44,124.41,20.0939]
[1742269215642,25.29650206,124.44,124.41,8.0379]
[1742269215843,20.0,124.39,124.36,0.28432314]
[1742269216142,25.29650206,124.38,124.36,0.28432314]
[1742269216722,25.29650206,124.4,124.36,19.21829514]
[1742269216924,20.0,124.41,124.39,0.56864628]
[1742269217122,20.0,124.41,124.4,18.64964886]
[1742269220644,20.0,124.41,124.39,8.0386]
[1742269220848,45.29650206,124.41,124.38,8.0395]
[1742269223746,25.29650206,124.39,124.37,18.64964886]
[1742269223931,25.29650206,124.38,124.35,8.0415]
[1742269224359,25.29650206,124.37,124.33,0.063]
[1742269224641,25.29650206,124.36,124.33,8.1058]
[1742269225457,32.51650206,124.37,124.33,8.1058]
[1742269225830,7.22,124.37,124.34,44.5147972]
[1742269226024,25.29650206,124.39,124.34,44.5147972]
[1742269226333,25.29650206,124.39,124.34,19.21829514]
[1742269226542,25.29650206,124.39,124.38,0.063]
[1742269227829,33.33570206,124.39,124.38,0.063]
[1742269228931,25.29650206,124.39,124.38,0.063]
[1742269230441,58.63220412,124.39,124.38,0.063]
[1742269230751,21.6052,124.36,124.33,0.063]
[1742269230921,25.29650206,124.34,124.33,0.063]
[1742269231343,32.51650206,124.35,124.33,0.063]
[1742269231551,7.22,124.36,124.33,0.063]
[1742269232256,32.51650206,124.36,124.33,0.063]
[1742269232843,20.0,124.34,124.33,0.063]
[1742269233039,33.33840206,124.35,124.33,0.063]
[1742269233238,25.29650206,124.35,124.33,0.063]
[1742269235643,6.3927,124.39,124.33,0.063]
[1742269235644,25.29650206,124.39,124.34,44.5147972]
[1742269235848,25.29650206,124.39,124.34,44.23047406]
[1742269236252,25.29650206,124.39,124.34,18.933972]
[1742269236852,25.29650206,124.39,124.35,8.0418]
[1742269237055,25.29650206,124.38,124.34,8.0421]
[1742269237349,25.29650206,124.39,124.34,26.69174886]
[1742269238357,20.0,124.38,124.34,46.79784886]
[1742269238552,6.646,124.43,124.37,18.64964886]
[1742269238850,20.0,124.39,124.38,26.68944886]